bitfinex/quotes_ETHUSD_20250331
["timestamp","ask_amount","ask_price","bid_price","bid_amount"]
[1743382054380,6.8381,1788.5,1787.9,6.67]
[1743382054683,3.39429689,1788.9,1788.7,5.59065]
[1743382054684,0.7881,1788.8,1788.7,5.59065]
[1743382054885,0.7881,1788.8,1788.7,12.26865]
[1743382055185,6.05001,1788.9,1788.7,12.26865]
[1743382055682,1e-05,1788.9,1788.8,5.59033]
[1743382057771,1e-05,1788.9,1788.7,6.678]
[1743382058174,1e-05,1788.9,1788.7,12.2686]
[1743382058378,1e-05,1788.9,1788.8,5.59033]
[1743382058574,1e-05,1788.9,1788.7,6.678]
[1743382059179,1e-05,1788.9,1788.5,5.59111]
[1743382059356,0.7881,1788.8,1788.6,6.665]
[1743382059803,6.3785,1788.8,1788.6,6.665]
[1743382060179,0.7881,1788.8,1788.6,6.665]
[1743382060386,5.59065,1788.7,1788.6,6.665]
[1743382060785,0.7881,1788.8,1788.6,6.665]
[1743382061308,5.59065,1788.7,1788.6,6.665]
[1743382061509,5.59065,1788.7,1787.4,5.42344653]
[1743382061510,0.7881,1788.4,1787.4,5.42344653]
[1743382061677,5.5927,1788.1,1787.6,5.59409]
[1743382062005,5.5927,1788.1,1787.7,5.5937]
[1743382062205,11.1855,1788.1,1787.6,5.59409]
[1743382062407,5.5932,1787.9,1787.7,6.664]
[1743382062586,11.6432,1787.9,1787.5,32.281]
[1743382062790,5.59366,1787.8,1787.5,32.281]
[1743382063293,5.59397,1787.7,1787.5,32.281]
[1743382063502,12.39819,1787.6,1787.5,32.281]
[1743382063692,5.59471,1787.4,1787.0,5.59579]
[1743382064004,6.05,1787.4,1787.1,6.651]
[1743382064573,11.64482,1787.4,1787.1,6.651]
[1743382065008,5.59505,1787.3,1787.1,6.651]
[1743382065196,11.64482,1787.4,1787.1,6.651]
[1743382065900,11.64482,1787.4,1786.9,5.59605]
[1743382065901,13.368743,1787.4,1786.9,5.59605]
[1743382066102,13.368743,1787.4,1787.0,6.631]
[1743382066510,5.59509,1787.3,1787.0,6.631]
[1743382066804,13.368743,1787.4,1787.0,6.631]
[1743382066805,5.59499,1787.4,1787.0,6.631]
[1743382066973,5.5951,1787.3,1786.8,32.286]
[1743382067178,5.5951,1787.3,1786.9,6.655]
[1743382067580,5.59499,1787.4,1786.9,12.25109]
[1743382067994,5.59499,1787.4,1787.0,5.59582]
[1743382068604,5.59499,1787.4,1786.9,12.25109]
[1743382068909,12.39833,1787.6,1787.0,5.59597]
[1743382069109,5.59489,1787.4,1786.9,12.25107]
[1743382069599,5.59531,1787.3,1786.9,6.655]
[1743382069998,5.59531,1787.3,1786.9,12.25118]
[1743382070308,0.7541,1787.2,1786.8,32.286]
[1743382070499,5.59592,1787.1,1786.8,32.286]
[1743382070806,5.59597,1787.0,1786.9,6.645]
[1743382071009,11.64597,1787.0,1786.9,6.645]
[1743382071180,5.59721,1786.7,1786.2,11.19694]
[1743382071383,6.35133,1786.6,1786.1,1.22794687]
[1743382071582,5.59771,1786.5,1786.2,6.642]
[1743382071876,5.59842,1786.3,1786.1,0.1]
[1743382072089,19.615513,1786.2,1786.1,0.1]
[1743382072326,22.03105489,1786.2,1786.1,0.1]
[1743382073784,21.09082289,1786.2,1786.1,0.1]
[1743382073986,22.24564589,1786.2,1786.1,0.1]
[1743382074184,22.24564589,1786.2,1785.3,6.69693612]
[1743382074185,5.60005,1785.7,1785.5,6.641]
[1743382074385,5.95,1785.7,1785.5,6.641]
[1743382074598,11.55021,1785.7,1785.5,6.641]
[1743382074819,5.60035,1785.6,1785.5,6.641]
[1743382075023,5.60069,1785.5,1785.4,6.638]
[1743382075220,5.60069,1785.5,1785.2,32.303]
[1743382075221,0.7541,1785.3,1785.2,38.938]
[1743382075427,12.30539,1785.3,1785.2,6.635]
[1743382075630,5.60161,1785.2,1785.1,0.1]
[1743382076696,11.55161,1785.2,1785.1,0.1]
[1743382076899,24.412329,1785.2,1785.1,0.1]
[1743382077100,19.594031,1785.2,1785.1,0.1]
[1743382077428,6.37289,1784.6,1784.5,32.313]
[1743382077599,12.32289,1784.6,1784.4,6.638]
[1743382077799,5.60381,1784.5,1784.4,6.638]
[1743382078031,5.60381,1784.5,1784.1,6.83354952]
[1743382078032,5.95,1784.5,1784.1,0.1]
[1743382078337,9.37415,1784.2,1784.1,0.1]
[1743382078528,9.37415,1784.2,1783.1,32.413]
[1743382078529,0.7694,1783.6,1783.1,40.18519079]
[1743382078827,12.32618,1783.6,1783.1,50.271]
[1743382079030,12.32618,1783.6,1783.1,44.66293]
[1743382079417,6.7194,1783.6,1783.1,39.055]
[1743382079623,6.7194,1783.6,1783.1,43.03718]
[1743382079929,5.60698,1783.5,1783.1,43.03718]
[1743382080097,12.32634,1783.6,1783.1,48.64518]
[1743382080306,5.60716,1783.5,1783.2,6.632]
[1743382080734,3.0,1783.5,1783.1,32.413]
[1743382081035,3.0,1783.5,1783.1,38.02101]
[1743382081200,5.60729,1783.4,1783.1,32.413]
[1743382081402,5.60789,1783.2,1783.1,0.1]
[1743382081750,12.32729,1783.2,1783.1,0.1]
[1743382082165,25.180146,1783.2,1783.1,0.1]
[1743382082369,25.180146,1783.2,1782.6,0.005]
[1743382082370,5.60946,1782.7,1782.6,0.005]
[1743382082518,5.60946,1782.7,1782.1,5.71111]
[1743382082519,5.61041,1782.4,1782.1,0.1]
[1743382082872,5.61041,1782.4,1781.1,5.71438]
[1743382082873,0.7694,1781.4,1781.1,5.71438]
[1743382083016,0.7694,1781.4,1781.1,0.1]
[1743382083217,0.7694,1781.7,1781.1,0.1]
[1743382083420,5.61356,1781.4,1781.1,0.1]
[1743382083756,3.7694,1781.7,1781.3,5.61386]
[1743382083920,0.7694,1781.7,1781.4,5.61339]
[1743382084120,3.0,1781.9,1781.3,7.265386]
[1743382084362,5.95,1782.3,1781.9,5.61198]
[1743382084528,6.7194,1782.3,1782.0,5.61141]
[1743382084721,6.7194,1782.3,1782.2,5.61104]
[1743382084924,3.292744,1782.4,1782.3,5.61072]
[1743382084925,0.292744,1782.4,1782.3,5.61072]
[1743382085116,0.292744,1782.4,1782.3,12.34572]
[1743382085117,0.092744,1782.4,1782.3,12.34572]
[1743382085537,0.092744,1782.4,1782.3,14.5]
[1743382085746,5.703154,1782.4,1781.9,32.363]
[1743382085920,6.042744,1782.4,1781.9,37.9748]
[1743382086127,6.042744,1782.4,1781.9,41.77226]
[1743382086351,0.092744,1782.4,1782.2,5.61097]
[1743382086560,0.092744,1782.4,1782.2,17.97694]
[1743382086763,0.092744,1782.4,1782.3,5.61072]
[1743382087148,0.092744,1782.4,1782.3,20.11072]
[1743382087349,5.95,1783.4,1782.6,5.60956]
[1743382087553,0.7694,1783.5,1782.9,5.60862]
[1743382087723,5.60743,1783.4,1782.9,5.60862]
[1743382087927,6.37664,1783.5,1782.8,6.757]
[1743382087928,5.95,1783.3,1782.8,6.757]
[1743382088172,0.7694,1783.5,1783.0,5.60827]
[1743382088453,5.60746,1783.4,1782.9,5.60883]
[1743382088637,5.60759,1783.3,1782.8,12.36609]
[1743382089150,5.60727,1783.4,1782.9,5.60882]
[1743382089363,5.60762,1783.3,1782.8,6.757]
[1743382089529,5.60792,1783.2,1782.8,6.757]
[1743382089844,0.7694,1783.5,1783.2,5.60774]
[1743382090046,3.39428689,1783.8,1783.4,5.60711]
[1743382090047,6.7194,1783.8,1783.4,5.60711]
[1743382090233,5.60635,1783.7,1783.3,6.757]
[1743382090438,6.7194,1783.8,1783.3,6.757]
[1743382090682,0.1,1783.9,1783.3,6.757]
[1743382090841,0.1,1783.9,1783.8,5.606]
[1743382091039,0.1,1783.9,1783.8,6.756]
[1743382091567,5.60602,1783.8,1783.5,6.752]
[1743382091741,0.7694,1783.8,1783.5,6.752]
[1743382092064,5.70573,1783.9,1783.5,6.752]
[1743382092356,0.1,1783.9,1783.5,12.35869]
[1743382092561,5.70583,1783.9,1783.5,6.752]
[1743382092877,0.1,1783.9,1783.6,5.60649]
[1743382093305,0.1,1783.9,1783.5,12.3589]
[1743382093509,0.1,1783.9,1783.8,5.606]
[1743382093683,0.1,1783.9,1783.7,6.37303]
[1743382093882,0.1,1783.9,1783.8,5.606]
[1743382094871,0.1,1783.9,1783.8,20.106]
[1743382097107,0.1,1783.9,1783.8,20.656]
[1743382097413,11.65281,1784.9,1783.8,20.656]
[1743382097414,0.1,1784.9,1784.0,0.7523]
[1743382097578,0.1,1784.9,1784.8,5.60286]
[1743382097910,0.1,1785.9,1785.5,5.60041]
[1743382098208,0.1,1785.9,1785.6,12.36708]
[1743382098417,5.69947,1785.9,1785.6,6.803]
[1743382098600,0.1,1785.9,1785.6,6.803]
[1743382098796,0.1,1785.9,1785.8,5.59973]
[1743382099018,0.1,1785.9,1785.7,5.59979]
[1743382099220,0.1,1785.9,1785.7,5.60001]
[1743382099405,0.1,1785.9,1785.8,5.59973]
[1743382099712,0.1,1785.9,1785.6,7.5553]
[1743382099915,0.1,1785.9,1785.6,0.7523]
[1743382100121,0.1,1785.9,1785.7,6.791]
[1743382100466,5.69951,1785.9,1785.7,6.791]
[1743382100665,0.669919,1785.9,1785.7,6.791]
[1743382100878,0.1,1785.9,1785.7,12.39086]
[1743382101273,0.1,1785.9,1785.8,6.35203]
[1743382101478,0.1,1785.9,1785.8,5.59973]
[1743382102478,0.1,1785.9,1785.8,6.14973]
[1743382102802,0.1,1785.9,1785.8,11.4834391]
[1743382103172,0.1,1785.9,1785.8,12.38373]
[1743382103376,0.1,1785.9,1785.7,32.358]
[1743382103603,0.1,1785.9,1785.8,12.38373]
[1743382103910,0.1,1785.9,1785.8,6.784]
[1743382104115,5.69949,1785.9,1785.7,32.358]
[1743382104274,0.1,1785.9,1785.7,39.14]
[1743382104592,0.1,1785.9,1785.7,50.3398]
[1743382104797,0.1,1785.9,1785.7,44.7399]
[1743382104998,0.1,1785.9,1785.7,39.14]
[1743382105195,0.1,1785.9,1785.8,5.59973]
[1743382105594,0.1,1785.9,1785.7,37.95779]
[1743382105908,0.1,1785.9,1785.8,6.834]
[1743382106094,0.1,1785.9,1785.7,32.358]
[1743382106095,0.669927,1785.9,1785.7,39.189]
[1743382106295,0.1,1785.9,1785.7,44.78888]
[1743382106498,0.1,1785.9,1785.7,39.189]
[1743382106804,0.1,1785.9,1785.7,44.78885]
[1743382107006,0.1,1785.9,1785.8,5.59973]
[1743382107713,0.1,1785.9,1785.8,6.36073]
[1743382107913,0.1,1785.9,1785.8,11.475692]
[1743382108078,16.74366,1786.8,1786.3,5.59812]
[1743382108274,5.59723,1786.6,1786.4,6.827]
[1743382108512,5.59864,1786.2,1785.8,5.59959]
[1743382108726,11.54864,1786.2,1785.9,6.844]
[1743382108929,5.95,1786.2,1785.9,6.844]
[1743382109081,5.95,1786.2,1785.9,14.247571]
[1743382109288,5.95,1786.2,1785.9,14.247661]
[1743382109888,5.95,1786.2,1785.9,12.44335]
[1743382110291,5.95,1786.2,1785.7,39.09806355]
[1743382110292,11.54848,1786.2,1785.7,39.09806355]
[1743382110506,12.31001,1786.1,1785.8,6.847]
[1743382110704,6.711,1786.1,1785.7,32.358]
[1743382111026,11.74485257,1786.7,1785.7,32.358]
[1743382111027,0.41046074,1787.0,1785.8,0.761]
[1743382111188,5.59675,1786.8,1786.3,5.59802]
[1743382111388,6.166425,1786.8,1786.4,6.907]
[1743382111583,5.59697,1786.7,1786.4,6.907]
[1743382111783,0.569675,1786.8,1786.5,6.904]
[1743382112114,0.1,1786.9,1786.6,11.19427]
[1743382112316,0.1,1786.9,1786.8,5.59659]
[1743382113692,0.1,1786.9,1786.8,5.59060709]
[1743382114526,0.1,1786.9,1786.6,32.335]
[1743382114718,0.1,1786.9,1786.7,12.48864]
[1743382115016,0.1,1786.9,1786.7,6.892]
[1743382115421,0.1,1786.9,1786.8,6.35759]
[1743382116903,0.1,1786.9,1786.8,13.25759]
[1743382117222,0.1,1787.9,1787.4,0.761]
[1743382117422,0.1,1787.9,1787.6,5.59406]
[1743382117623,0.1,1787.9,1787.5,39.235]
[1743382117918,0.1,1787.9,1787.8,5.59346]
[1743382118319,0.1,1787.9,1787.7,5.59375]
[1743382118623,5.69318,1787.9,1787.8,6.902]
[1743382119215,0.1,1787.9,1787.8,6.902]
[1743382119722,0.1,1787.9,1787.8,6.95]
[1743382120128,0.1,1787.9,1787.5,32.32]
[1743382120295,5.59363,1787.8,1787.5,32.32]
[1743382120495,12.672337,1787.8,1787.6,6.967]
[1743382120697,18.266087,1787.8,1787.6,6.967]
[1743382120998,7.078707,1787.8,1787.6,6.967]
[1743382121193,0.1,1787.9,1787.6,12.56105]
[1743382121392,0.1,1787.9,1787.7,5.59369]
[1743382121589,0.1,1787.9,1787.7,11.18734]
[1743382122016,0.1,1787.9,1787.7,5.59365]
[1743382122221,0.1,1787.9,1787.7,11.1873]
[1743382122523,0.1,1787.9,1787.8,5.59346]
[1743382123497,0.1,1787.9,1787.7,5.59365]
[1743382123791,0.1,1787.9,1787.8,5.59346]
[1743382125593,0.1,1787.9,1787.7,5.59365]
[1743382125799,0.1,1787.9,1787.6,6.967]
[1743382126125,0.1,1787.9,1787.7,6.933]
[1743382126312,0.1,1787.9,1787.8,6.936]
[1743382127427,0.1,1787.9,1787.8,12.52946]
[1743382128427,0.1,1787.9,1787.8,6.936]
[1743382128794,0.1,1787.9,1787.8,12.52946]
[1743382129029,0.1,1787.9,1787.8,6.936]
[1743382129629,5.69315,1787.9,1787.8,6.936]
[1743382129822,6.821768,1787.9,1787.8,6.936]
[1743382130134,1.228618,1787.9,1787.8,6.936]
[1743382130503,0.1,1787.9,1787.8,6.936]
[1743382130918,0.1,1787.9,1787.8,12.52946]
[1743382131136,0.1,1787.9,1787.8,6.936]
[1743382131523,0.1,1787.9,1787.8,12.52946]
[1743382132740,0.1,1787.9,1787.8,6.936]
[1743382133317,5.69315,1787.9,1787.8,6.842]
[1743382133548,6.262465,1787.9,1787.8,6.842]
[1743382134343,0.669315,1787.9,1787.8,6.842]
[1743382134718,6.262465,1787.9,1787.8,6.842]
[1743382135421,0.669315,1787.9,1787.7,6.814]
[1743382135819,0.669315,1787.9,1787.7,6.81]
[1743382136216,0.1,1787.9,1787.8,5.59346]
[1743382138051,9.96010737,1788.8,1788.7,5.59065]
[1743382138052,1.36959737,1788.8,1788.7,5.59065]
[1743382138348,1e-05,1788.9,1788.8,5.59033]
[1743382138748,0.8082,1788.8,1788.5,32.293]
[1743382139141,5.59075,1788.7,1788.5,32.293]
[1743382139342,1.198958,1788.7,1788.5,32.293]
[1743382140048,11.18221,1788.6,1788.3,6.86]
[1743382140355,5.59096,1788.6,1788.3,6.86]
[1743382140543,11.18221,1788.6,1788.3,6.86]
[1743382140719,5.59096,1788.6,1788.3,6.86]
[1743382140922,11.54069,1788.7,1788.3,12.4519]
[1743382141135,1.154069,1788.6,1788.3,12.4519]
[1743382141349,5.95,1788.7,1788.5,5.59096]
[1743382141549,5.95,1788.7,1788.5,11.18209]
[1743382141780,5.95,1788.7,1788.3,12.45185]
[1743382142097,5.95,1788.7,1788.4,6.841]
[1743382142236,5.95,1788.7,1788.5,5.59126]
[1743382142559,1e-05,1788.9,1788.7,5.59054]
[1743382142854,1e-05,1788.9,1788.7,6.149524]
[1743382143074,1e-05,1788.9,1788.8,39.20543]
[1743382143271,1.36959737,1789.7,1789.2,0.7751]
[1743382143474,2.58573491,1789.8,1789.3,6.917]
[1743382143770,6.39625,1789.6,1789.3,6.918]
[1743382144069,6.39625,1789.6,1789.0,5.58957]
[1743382144070,5.58833,1789.5,1789.0,12.50451]
[1743382144626,10.3530011,1789.8,1789.0,12.50451]
[1743382144627,2.17779737,1789.8,1789.0,12.5046]
[1743382144856,0.8082,1789.8,1789.5,5.58792]
[1743382145063,3.8082,1789.8,1789.5,6.932]
[1743382145271,0.8082,1789.8,1789.5,6.932]
[1743382145442,10.640016,1789.8,1789.5,6.932]
[1743382145752,0.8082,1789.8,1789.6,5.58764]
[1743382145956,6.05,1789.9,1789.6,5.58764]
[1743382145957,0.1,1789.9,1789.7,5.58751]
[1743382146343,0.1,1789.9,1789.7,5.58745]
[1743382146547,0.1,1789.9,1789.6,5.5878]
[1743382147052,0.1,1789.9,1789.7,5.58752]
[1743382147259,0.1,1789.9,1789.8,5.58721]
[1743382147573,0.1,1789.9,1789.5,12.51996]
[1743382147760,0.668662,1789.9,1789.5,18.10784]
[1743382147924,0.1,1789.9,1789.6,11.17525]
[1743382148127,0.1,1789.9,1789.7,5.5875]
[1743382148554,0.1,1789.9,1789.7,5.58736]
[1743382148770,0.1,1789.9,1789.8,5.58721]
[1743382149072,0.1,1789.9,1789.7,5.58736]
[1743382149229,0.1,1789.9,1789.5,12.5199]
[1743382149230,5.6871,1789.9,1789.4,6.36355]
[1743382149429,5.6871,1789.9,1789.8,6.902]
[1743382149732,0.1,1789.9,1789.8,6.902]
[1743382151446,0.8082,1789.8,1789.0,0.7751]
[1743382151648,8.58807,1789.6,1789.1,12.47135]
[1743382151851,5.58831,1789.5,1789.1,6.882]
[1743382152161,9.446877,1789.6,1789.2,5.58888]
[1743382152162,3.858807,1789.6,1789.2,5.58888]
[1743382152359,9.446707,1789.6,1789.1,12.47127]
[1743382152546,9.446707,1789.6,1789.1,18.06054]
[1743382153564,9.446707,1789.6,1789.2,5.5889]
[1743382154061,3.0,1789.6,1789.1,6.882]
[1743382154361,3.0,1789.6,1789.4,5.58829]
[1743382155158,3.0,1789.6,1789.5,0.8041]
[1743382155357,3.0,1789.6,1789.3,0.8041]
[1743382155660,8.58769,1789.7,1789.3,6.39271]
[1743382155884,3.0,1789.7,1789.3,6.39271]
[1743382156163,3.0,1789.7,1789.4,5.58833]
[1743382156867,3.0,1789.7,1789.4,5.58844]
[1743382157066,3.0,1789.7,1789.5,5.588]
[1743382157271,3.0,1789.7,1789.6,6.824]
[1743382157475,0.1,1789.9,1789.6,6.824]
[1743382157774,0.1,1789.9,1789.6,12.41178]
[1743382157944,0.1,1789.9,1789.6,6.824]
[1743382158150,5.58726,1789.8,1789.6,6.824]
[1743382158862,5.58832,1789.5,1789.3,6.818]
[1743382159072,5.58846,1789.4,1789.3,6.818]
[1743382160065,5.58846,1789.4,1788.8,7.91269652]
[1743382160066,5.58968,1789.1,1788.8,7.91269652]
[1743382160258,5.58968,1789.1,1788.8,6.807]
[1743382160658,6.3748,1789.2,1788.8,12.39729]
[1743382160856,0.7857,1789.2,1788.8,19.786173]
[1743382161058,0.7857,1789.2,1788.9,5.59002]
[1743382161236,5.95,1789.4,1789.2,5.58909]
[1743382161571,6.37366,1789.6,1789.2,5.58909]
[1743382161572,3.0,1789.5,1789.2,5.58909]
[1743382161871,12.32366,1789.6,1789.2,5.58909]
[1743382162648,5.58816,1789.5,1789.1,5.58932]
[1743382162842,12.32366,1789.6,1789.1,5.58917]
[1743382163046,12.32366,1789.6,1788.9,0.8041]
[1743382163047,5.95,1789.6,1789.3,5.58851]
[1743382163383,11.53746,1789.8,1789.4,12.36522]
[1743382163554,11.53746,1789.8,1789.5,6.777]
[1743382164066,0.1,1789.9,1789.5,6.777]
[1743382164267,0.1,1789.9,1789.8,5.58721]
[1743382165672,5.58722,1789.8,1789.5,39.044]
[1743382165892,5.58761,1789.7,1789.5,39.044]
[1743382166061,11.17471,1789.8,1789.5,39.044]
[1743382166266,12.897181,1789.8,1789.5,39.044]
[1743382166579,5.5877,1789.7,1789.5,39.044]
[1743382167095,5.58784,1789.6,1789.5,39.044]
[1743382167261,5.5877,1789.7,1789.5,39.044]
[1743382167665,5.58784,1789.6,1789.5,39.044]
[1743382167865,9.37354,1789.6,1789.5,39.044]
[1743382168096,8.58784,1789.6,1789.5,39.044]
[1743382170568,15.955394,1789.6,1789.5,39.044]
[1743382170770,14.17812,1789.3,1789.2,6.7]
[1743382171091,5.58917,1789.2,1789.0,6.699]
[1743382171269,5.58945,1789.1,1789.0,6.699]
[1743382172206,5.58917,1789.2,1789.0,6.699]
[1743382172411,5.58971,1789.0,1788.8,38.944]
[1743382172611,5.5894,1789.1,1788.8,38.944]
[1743382173106,3.0,1789.1,1788.9,5.58982]
[1743382173298,3.0,1789.1,1788.8,44.53426]
[1743382173494,3.0,1789.1,1788.8,38.944]
[1743382173704,8.58952,1789.1,1788.8,38.944]
[1743382174287,5.58985,1789.0,1788.8,38.944]
[1743382174582,8.58952,1789.1,1788.8,38.944]
[1743382175315,14.17919,1789.1,1788.8,38.944]
[1743382175494,5.58972,1789.0,1788.8,38.944]
[1743382175688,11.53972,1789.0,1788.8,38.944]
[1743382175894,5.95,1789.0,1788.8,38.944]
[1743382176537,5.59002,1788.9,1788.8,38.944]
[1743382176814,5.59062,1788.8,1788.3,5.5916]
[1743382176983,5.95,1788.8,1788.3,6.638]
[1743382177182,5.59083,1788.7,1788.3,12.22978]
[1743382177627,5.59083,1788.7,1788.3,6.638]
[1743382177823,5.59118,1788.6,1788.3,6.638]
[1743382178007,11.18238,1788.6,1788.3,6.638]
[1743382178315,0.8079,1788.5,1788.3,6.624]
[1743382178491,5.95,1788.5,1788.2,6.622]
[1743382178693,5.95,1788.5,1788.0,32.267]
[1743382179012,5.59187,1788.4,1788.0,46.11264239]
[1743382179728,5.59187,1788.4,1788.0,40.51981239]
[1743382179729,5.59203,1788.3,1788.0,40.51981239]
[1743382180088,6.40033,1788.2,1788.0,32.267]
[1743382180285,5.59317,1787.9,1787.5,12.20223]
[1743382180489,11.54317,1787.9,1787.5,12.20223]
[1743382180924,11.54338,1787.9,1787.5,12.20223]
[1743382181093,5.95,1788.3,1788.2,5.59221]
[1743382181295,5.95,1788.5,1788.4,5.59159]
[1743382181718,5.95,1789.0,1788.7,5.59051]
[1743382181916,5.95,1789.0,1788.9,5.59002]
[1743382182105,5.95,1789.0,1788.8,12.20627]
[1743382182421,5.95,1789.0,1788.8,6.616]
[1743382182620,11.53978,1789.0,1788.8,6.616]
[1743382182824,11.53978,1789.0,1788.8,7.2776]
[1743382182825,5.95,1789.0,1788.8,7.2776]
[1743382183121,5.95,1789.0,1788.8,6.616]
[1743382183319,5.95,1789.2,1788.8,6.616]
[1743382183520,5.95,1789.2,1789.0,5.58949]
[1743382183911,5.95,1789.2,1788.9,5.58984]
[1743382184107,5.95,1789.2,1788.8,12.20633]
[1743382184301,5.95,1789.2,1788.9,5.58981]
[1743382184497,5.95,1789.2,1788.9,11.17965]
[1743382184699,5.95,1789.2,1788.9,11.1797]
[1743382185496,5.95,1789.2,1788.9,5.58981]
[1743382185717,5.95,1789.2,1788.8,13.985988]
[1743382186512,5.95,1789.2,1788.8,19.576088]
[1743382186688,5.95,1789.2,1788.9,5.58999]
[1743382187094,5.95,1789.2,1788.8,13.985798]
[1743382188233,5.95,1789.2,1788.9,5.58999]
[1743382188422,5.95,1789.2,1788.8,13.985798]
[1743382189025,5.95,1789.2,1788.9,5.58991]
[1743382189227,5.95,1789.2,1789.0,5.58958]
[1743382189649,5.95,1789.2,1788.9,5.58991]
[1743382190000,5.95,1789.5,1788.9,7.5476138]
[1743382190235,5.95,1789.5,1789.0,33.078]
[1743382190403,5.95,1789.5,1789.2,5.5888]
[1743382190603,5.95,1789.5,1789.3,6.553]
[1743382190999,11.53835,1789.5,1789.3,6.553]
[1743382191418,5.58846,1789.4,1789.3,6.553]
[1743382191807,5.58886,1789.3,1789.0,38.815]
[1743382192360,11.53886,1789.3,1789.0,38.815]
[1743382193153,5.95,1789.3,1789.0,38.815]
[1743382193645,11.539,1789.3,1789.0,38.815]
[1743382194030,5.95,1789.3,1789.0,38.815]
[1743382194231,5.58925,1789.2,1789.0,38.815]
[1743382194451,11.53894,1789.3,1789.0,38.815]
[1743382194618,0.7568,1789.1,1789.0,32.272]
[1743382194830,12.2962,1789.1,1789.0,32.272]
[1743382195225,6.7068,1789.1,1789.0,32.272]
[1743382196030,12.2962,1789.1,1789.0,32.272]
[1743382196760,15.2962,1789.1,1789.0,32.272]
[1743382197643,5.58981,1789.0,1788.8,6.489]
[1743382198565,15.2962,1789.1,1788.8,6.489]
[1743382199136,5.58975,1789.0,1788.8,6.489]
[1743382199970,15.2962,1789.1,1788.8,6.489]
[1743382200269,5.58984,1789.0,1788.8,6.489]
[1743382200570,5.95,1789.1,1789.0,5.58971]
[1743382200963,5.95,1789.1,1788.8,12.86426]
[1743382201169,5.95,1789.1,1788.9,5.58987]
[1743382201549,5.95,1789.1,1788.8,7.274]
[1743382201550,11.5396,1789.1,1788.8,6.489]
[1743382202356,5.95,1789.1,1788.8,6.489]
[1743382202575,5.95,1789.1,1789.0,5.58971]
[1743382202881,5.95,1789.1,1788.9,5.5898]
[1743382203080,5.95,1789.1,1788.8,6.489]
[1743382203261,5.58879,1789.3,1788.6,6.45]
[1743382203262,5.59002,1788.9,1788.6,6.45]
[1743382203466,11.54046,1788.8,1788.5,38.723]
[1743382203772,11.54046,1788.8,1788.5,32.271]
[1743382204354,5.59083,1788.7,1788.5,32.271]
[1743382204555,5.95,1789.2,1788.5,38.27492089]
[1743382204873,5.95,1789.2,1789.0,5.58943]
[1743382205090,5.95,1789.2,1789.1,6.458]
[1743382206145,0.753,1789.1,1788.6,6.36998]
[1743382206476,0.753,1789.1,1788.7,6.452]
[1743382206477,5.95,1789.0,1788.7,6.452]
[1743382206675,5.5913,1788.5,1788.1,5.59238]
[1743382206879,5.95,1788.4,1788.2,6.477]
[1743382207078,5.95,1788.4,1788.1,6.483]
[1743382207242,5.59267,1788.1,1787.9,32.273]
[1743382207574,5.95,1788.0,1787.9,32.273]
[1743382208073,5.95,1788.0,1787.9,37.86615]
[1743382208578,5.95,1788.0,1787.9,38.64535]
[1743382209276,5.95,1788.0,1787.9,32.273]
[1743382210177,5.95,1788.0,1787.9,37.86615]
[1743382211274,5.95,1788.0,1787.9,44.35815]
[1743382211476,5.95,1788.0,1787.9,38.765]
[1743382211677,6.703,1788.0,1787.9,32.273]
[1743382211854,15.46351299,1788.0,1787.9,32.273]
[1743382212056,6.703,1788.0,1787.9,32.273]
[1743382212262,5.95,1788.0,1787.9,32.273]
[1743382213268,5.95,1788.0,1787.9,37.86615]
[1743382213774,5.95,1788.0,1787.9,32.273]
[1743382213948,5.95,1788.0,1787.9,38.759]
[1743382214351,12.36104,1788.0,1787.9,32.273]
[1743382214559,12.36104,1788.0,1787.9,38.755]
[1743382214758,12.36104,1788.0,1787.9,32.273]
[1743382214958,15.36104,1788.0,1787.9,32.273]
[1743382215498,9.7682,1788.0,1787.9,32.273]
[1743382215651,5.95,1788.0,1787.9,32.273]
[1743382215852,5.95,1788.0,1787.9,37.86615]
[1743382216284,5.95,1788.2,1788.1,5.59252]
[1743382216491,5.95,1788.2,1788.1,12.91232]
[1743382217151,5.95,1788.5,1788.1,12.91212]
[1743382217355,8.75881299,1788.6,1788.1,12.91212]
[1743382217356,5.95,1788.4,1788.2,5.59216]
[1743382217854,5.95,1788.4,1788.1,6.489]
[1743382218090,5.59193,1788.3,1788.1,6.489]
[1743382218274,5.95,1788.2,1788.1,6.489]